bitfinex-derivatives/quotes_SOLF0:USTF0_20250409
["timestamp","ask_amount","ask_price","bid_price","bid_amount"]
[1744182018740,6.2212,105.75,105.67,530.5383475]
[1744182018935,6.2212,105.75,105.7,9.4667]
[1744182019130,6.2212,105.75,105.71,40.36]
[1744182019437,9.465,105.73,105.71,40.36]
[1744182019643,9.465,105.73,105.72,0.066429]
[1744182020437,9.465,105.73,105.72,2.9e-05]
[1744182020941,0.06545877,105.74,105.73,9.4644]
[1744182021145,0.06545877,105.74,105.72,2.9e-05]
[1744182021540,0.06545877,105.74,105.73,9.4644]
[1744182022044,2.8636,105.78,105.74,9.463]
[1744182022339,2.8636,105.78,105.75,40.36]
[1744182022545,9.4587,105.8,105.75,40.36]
[1744182023146,2.8636,105.81,105.72,40.36]
[1744182023444,0.06122037,105.79,105.76,0.06340611]
[1744182024044,9.52052037,105.79,105.76,0.06340611]
[1744182024246,0.06122037,105.79,105.76,0.06340611]
[1744182024440,9.4609,105.77,105.76,0.06340611]
[1744182024645,0.06122037,105.79,105.76,0.06340611]
[1744182025745,9.4606,105.78,105.76,0.06340611]
[1744182026148,0.06122037,105.79,105.76,0.06340611]
[1744182027251,71.37956787,105.79,105.72,40.36]
[1744182027552,71.37956787,105.79,105.7,2.8354]
[1744182027553,30.9583475,105.77,105.69,40.36]
[1744182027950,9.4649,105.73,105.69,49.8273]
[1744182028555,0.06059944,105.72,105.7,0.06598094]
[1744182029653,9.4662,105.71,105.7,0.06598094]
[1744182029855,0.06059944,105.72,105.7,0.06598094]
[1744182030553,0.06059944,105.72,105.66,40.36]
[1744182030858,2.91899944,105.72,105.66,40.36]
[1744182031256,3.1018,105.71,105.66,40.36]
[1744182031855,0.06337576,105.7,105.66,40.36]
[1744182032054,30.9583475,105.75,105.66,40.36]
[1744182032255,0.067552,105.69,105.66,40.36]
[1744182032455,30.9583475,105.75,105.66,40.36]
[1744182032959,30.9583475,105.69,105.62,40.36]
[1744182033153,30.9583475,105.67,105.6,40.36]
[1744182033360,9.4738,105.63,105.6,49.836]
[1744182033758,9.53914776,105.63,105.6,49.836]
[1744182034152,9.53914776,105.63,105.6,40.36]
[1744182034659,0.06534776,105.63,105.6,40.36]
[1744182034957,0.06534776,105.63,105.6,49.8359]
[1744182035162,0.06534776,105.63,105.6,40.36]
[1744182035459,0.06534776,105.63,105.62,9.4743]
[1744182035847,0.06534776,105.63,105.6,40.36]
[1744182035848,5.736,105.68,105.6,40.36]
[1744182036259,15.2055,105.68,105.6,40.36]
[1744182036754,15.2055,105.68,105.63,9.4729]
[1744182036957,0.06546576,105.65,105.64,40.88]
[1744182037253,2.941,105.7,105.64,40.88]
[1744182037447,0.06581394,105.66,105.64,40.88]
[1744182037847,0.06581394,105.66,105.65,9.4711]
[1744182038951,2.941,105.7,105.66,9.4702]
[1744182039152,15.2728,105.71,105.67,40.88]
[1744182039350,2.9925,105.72,105.67,40.88]
[1744182040255,0.06399668,105.71,105.68,9.53568942]
[1744182040452,0.06399668,105.71,105.68,0.06728942]
[1744182040957,9.468,105.69,105.68,0.06728942]
[1744182041153,2.8946,105.7,105.68,0.06728942]
[1744182041664,0.06399668,105.71,105.68,0.06728942]
[1744182041861,0.06399668,105.71,105.68,9.53578942]
[1744182042461,9.53029668,105.71,105.68,9.53578942]
[1744182042663,0.06399668,105.71,105.68,0.06728942]
[1744182043162,0.06399668,105.71,105.7,9.4671]
[1744182043363,0.06399668,105.71,105.7,50.3471]
[1744182043570,5.8447,105.76,105.7,40.88]
[1744182043754,5.8447,105.76,105.73,9.4642]
[1744182043956,5.8447,105.76,105.73,50.3442]
[1744182044156,5.8447,105.76,105.73,40.88]
[1744182044765,5.91594853,105.76,105.73,40.94618894]
[1744182046367,15.37814853,105.76,105.73,40.94618894]
[1744182047262,15.37814853,105.76,105.73,50.41058894]
[1744182047470,9.4628,105.75,105.73,40.94618894]
[1744182047770,5.91594853,105.76,105.73,40.94618894]
[1744182047966,0.07124853,105.76,105.73,40.94618894]
[1744182048362,0.07124853,105.76,105.74,9.4631]
[1744182049673,0.07124853,105.76,105.73,50.41028894]
[1744182050369,0.07124853,105.76,105.73,40.94618894]
[1744182051472,0.07124853,105.76,105.73,0.06618894]
[1744182051766,9.4635,105.74,105.73,0.06618894]
[1744182053258,9.4635,105.74,105.73,8.894e-05]
[1744182053864,0.07124853,105.76,105.73,8.894e-05]
[1744182053865,0.07124853,105.76,105.73,40.86008894]
[1744182054566,0.07124853,105.76,105.73,50.32408894]
[1744182054567,9.53304853,105.76,105.73,50.32408894]
[1744182054770,0.07124853,105.76,105.73,40.86008894]
[1744182055366,50.35714587,105.81,105.73,40.86008894]
[1744182055672,9.4607,105.78,105.73,40.86]
[1744182056367,9.4607,105.78,105.74,9.4631]
[1744182056575,5.9489,105.82,105.73,40.86]
[1744182056774,0.0686572,105.77,105.75,0.06867911]
[1744182057071,50.35714587,105.81,105.73,50.3243]
[1744182057275,0.06001061,105.77,105.75,0.07233352]
[1744182058067,0.06001061,105.77,105.76,40.86]
[1744182059274,0.06001061,105.77,105.76,50.3218]
[1744182059769,9.4574,105.81,105.78,9.4594]
[1744182060363,5.9489,105.82,105.76,50.321]
[1744182060568,5.9489,105.82,105.76,40.86]
[1744182060764,3.0258,105.85,105.79,9.4584]
[1744182060968,0.06641572,105.8,105.79,40.86]
[1744182061376,30.918402,105.84,105.79,40.86]
[1744182061573,0.07173838,105.81,105.79,40.86]
[1744182061779,0.07173838,105.81,105.79,50.319]
[1744182061975,0.07173838,105.81,105.79,40.92731766]
[1744182062672,0.07173838,105.81,105.79,50.38591766]
[1744182062978,5.7707,105.85,105.79,40.92731766]
[1744182063367,9.455,105.84,105.79,40.92731766]
[1744182063576,5.7707,105.85,105.79,40.92731766]
[1744182063771,9.4559,105.83,105.8,9.458]
[1744182064074,5.7707,105.85,105.79,40.86]
[1744182064275,0.06082386,105.83,105.8,0.07071689]
[1744182065077,0.06082386,105.83,105.8,1.29581689]
[1744182065573,0.06082386,105.83,105.81,9.4566]
[1744182065777,0.06082386,105.83,105.82,40.38]
[1744182065979,3.009,105.88,105.82,40.38]
[1744182066280,82.57786492,105.94,105.83,30.918402]
[1744182066577,9.4492,105.9,105.83,30.918402]
[1744182066779,6.06,105.93,105.83,30.918402]
[1744182067281,0.06068398,105.89,105.87,9.52041923]
[1744182067483,0.06068398,105.89,105.88,40.38]
[1744182067983,0.06068398,105.89,105.87,0.06901923]
[1744182068184,0.06068398,105.89,105.82,40.36]
[1744182068377,30.918402,105.88,105.82,40.36]
[1744182068577,30.918402,105.86,105.82,40.36]
[1744182068780,2.9731,105.87,105.82,40.36]
[1744182069185,9.4555,105.83,105.82,40.36]
[1744182069578,2.9731,105.87,105.81,0.07061549]
[1744182069776,0.07015829,105.84,105.81,0.07061549]
[1744182070984,30.98856029,105.84,105.76,40.36]
[1744182071178,30.918402,105.84,105.76,40.36]
[1744182071376,9.4609,105.77,105.76,40.36]
[1744182071882,9.4597,105.79,105.76,40.36]
[1744182072082,40.36,105.82,105.76,40.36]
[1744182072276,9.4609,105.77,105.76,0.06900945]
[1744182074181,9.4609,105.77,105.76,9.45e-06]
[1744182074388,2.9149,105.78,105.73,40.36]
[1744182075584,0.0671374,105.77,105.74,0.06246643]
[1744182075985,9.4618,105.76,105.74,0.06246643]
[1744182076375,0.0671374,105.77,105.74,0.06246643]
[1744182076681,9.5284374,105.77,105.74,0.06246643]
[1744182078086,9.4618,105.76,105.74,0.06246643]
[1744182078382,0.0671374,105.77,105.74,0.06246643]
[1744182079590,9.5284374,105.77,105.74,0.06246643]
[1744182079788,0.0671374,105.77,105.74,0.06246643]
[1744182080889,0.0671374,105.77,105.74,9.52586643]
[1744182081085,0.0671374,105.77,105.74,0.06246643]
[1744182081588,9.5285374,105.77,105.74,0.06246643]
[1744182081888,0.0671374,105.77,105.74,0.06246643]
[1744182083591,9.4619,105.76,105.74,0.06246643]
[1744182083892,0.0671374,105.77,105.74,0.06246643]
[1744182084291,9.5284374,105.77,105.74,0.06246643]
[1744182084692,0.0671374,105.77,105.74,0.06246643]
[1744182085396,9.5284374,105.77,105.74,0.06246643]
[1744182085896,0.0671374,105.77,105.74,0.06246643]
[1744182086191,0.0671374,105.77,105.74,9.52546643]
[1744182086390,0.0671374,105.77,105.74,0.06246643]
[1744182086697,3.0672,105.82,105.75,50.22723353]
[1744182086890,5.9371,105.84,105.76,40.38]
[1744182087083,40.38,105.87,105.77,78.62723353]
[1744182087084,3.044,105.87,105.77,78.62723353]
[1744182087294,3.044,105.87,105.79,50.22723353]
[1744182087587,3.044,105.87,105.8,43.3925]
[1744182087787,5.9371,105.88,105.8,43.3925]
[1744182087988,0.06281151,105.85,105.82,0.06589816]
[1744182088290,0.06281151,105.85,105.84,9.4546]
[1744182088694,9.4506,105.89,105.85,9.453]
[1744182088900,5.8814,105.92,105.86,40.36]
[1744182089395,5.8814,105.92,105.88,9.4505]
[1744182089703,2.8944,105.94,105.89,40.36]
[1744182089996,0.06869026,105.91,105.9,40.36]
[1744182090387,9.51699026,105.91,105.9,40.36]
[1744182090594,9.51699026,105.91,105.89,0.06856714]
[1744182091092,0.06869026,105.91,105.89,0.06856714]
[1744182092095,9.51749026,105.91,105.89,0.06856714]
[1744182092494,0.06869026,105.91,105.89,0.06856714]
[1744182092695,9.4492,105.9,105.89,0.06856714]
[1744182093499,9.51739026,105.91,105.89,0.06856714]
[1744182093687,0.06869026,105.91,105.89,0.06856714]
[1744182094091,9.4492,105.9,105.89,0.06856714]
[1744182094292,0.06869026,105.91,105.89,0.06856714]
[1744182095304,0.06869026,105.91,105.9,40.34]
[1744182095498,0.06869026,105.91,105.89,0.06856714]
[1744182095694,9.51719026,105.91,105.89,0.06856714]
[1744182095893,0.06869026,105.91,105.89,0.06856714]
[1744182096302,9.51749026,105.91,105.89,0.06856714]
[1744182096799,0.06869026,105.91,105.89,0.06856714]
[1744182097799,0.06869026,105.91,105.9,40.34]
[1744182098196,0.06869026,105.91,105.9,9.4492]
[1744182098396,0.06869026,105.91,105.89,0.06856714]
[1744182098598,9.51709026,105.91,105.89,0.06856714]
[1744182098898,0.06869026,105.91,105.9,40.34]
[1744182099398,9.51699026,105.91,105.9,40.34]
[1744182099598,0.06869026,105.91,105.89,0.06856714]
[1744182099901,0.06869026,105.91,105.9,40.34]
[1744182100291,0.06869026,105.91,105.9,49.7892]
[1744182100599,0.06869026,105.91,105.9,40.34]
[1744182101698,0.06869026,105.91,105.9,49.7892]
[1744182102202,9.4503,105.89,105.86,9.4522]
[1744182102403,43.258,105.93,105.84,40.34]
[1744182102798,9.449,105.91,105.84,40.34]
[1744182103105,43.258,105.93,105.84,40.34]
[1744182103301,9.4479,105.92,105.88,9.4503]
[1744182103502,0.06949621,105.9,105.89,40.34]
[1744182105603,0.06949621,105.9,105.88,0.06598384]
[1744182105902,9.51949621,105.9,105.88,0.06598384]
[1744182106609,0.06949621,105.9,105.88,0.06598384]
[1744182106901,0.06949621,105.9,105.89,40.34]
[1744182107101,0.06949621,105.9,105.89,49.7901]
[1744182107298,8.7893,105.96,105.89,40.34]
[1744182107897,39.62290703,105.96,105.89,40.34]
[1744182108093,9.4482,105.92,105.89,40.34]
[1744182108295,39.62290703,105.96,105.89,40.34]
[1744182108499,0.0702189,105.92,105.89,40.40506853]
[1744182108700,0.0702189,105.92,105.89,40.34]
[1744182108896,9.5180189,105.92,105.89,49.85726429]
[1744182109708,0.0702189,105.92,105.9,9.4491]
[1744182110102,0.0702189,105.92,105.89,40.40756429]
[1744182111199,0.0702189,105.92,105.89,46.42326429]
[1744182111601,0.0702189,105.92,105.91,9.4483]
[1744182112108,5.8832,105.96,105.9,498.76]
[1744182112304,15.3279,105.96,105.9,498.76]
[1744182112907,5.8832,105.96,105.9,498.76]
[1744182113206,0.06913445,105.94,105.92,0.06302795]
[1744182113409,0.06913445,105.94,105.92,40.38302795]
[1744182113706,0.06913445,105.94,105.92,49.83002795]
[1744182114307,0.06913445,105.94,105.92,40.38302795]
[1744182114797,9.4466,105.93,105.92,40.38302795]
[1744182115509,9.4482,105.92,105.89,40.32]
[1744182115909,36.71680703,105.96,105.89,40.32]
[1744182116505,9.4481,105.92,105.89,49.77]
[1744182116702,0.06375362,105.94,105.91,0.06469465]
[1744182117003,0.06194273,105.94,105.91,0.06469465]
[1744182117306,0.06194273,105.94,105.91,9.51289465]
[1744182117307,9.50804273,105.94,105.91,9.51289465]
[1744182117611,0.06194273,105.94,105.92,9.4474]
[1744182118009,0.06194273,105.94,105.91,0.06469465]
[1744182118310,0.06194273,105.94,105.91,9.51229465]
[1744182118611,0.06194273,105.94,105.92,40.32]
[1744182119408,9.50774273,105.94,105.92,40.32]
[1744182119610,0.06194273,105.94,105.92,40.32]
[1744182119810,0.06194273,105.94,105.92,49.7671]
[1744182120003,0.06194273,105.94,105.92,40.32]
[1744182120509,9.4466,105.93,105.92,40.32]
[1744182120713,0.06194273,105.94,105.92,40.32]
[1744182121213,9.4466,105.93,105.92,40.32]
[1744182121606,0.06194273,105.94,105.92,40.32]
[1744182121806,0.06194273,105.94,105.92,49.7674]
[1744182122001,0.06194273,105.94,105.92,40.32]
[1744182122201,0.06194273,105.94,105.93,9.4466]
[1744182122404,0.06194273,105.94,105.92,40.32]
[1744182122714,0.06194273,105.94,105.92,49.767]
[1744182123015,0.06194273,105.94,105.92,40.32]
[1744182124511,0.06194273,105.94,105.93,9.4466]
[1744182125104,82.49306995,106.03,105.93,9.44]
[1744182125305,82.49306995,106.03,105.92,569.75360703]
[1744182125306,5.9924,106.02,105.92,569.75360703]
[1744182125612,9.4395,106.01,105.98,9.4418]
[1744182126007,9.4395,106.01,105.97,39.64]
[1744182126302,9.50692055,106.0,105.98,0.07249659]
[1744182126511,0.06652055,106.0,105.98,0.07249659]
[1744182126701,0.06652055,106.0,105.99,9.4412]
[1744182126905,51.65946292,106.03,105.98,0.07249659]
[1744182127715,51.65946292,106.03,106.02,9.4385]
[1744182127907,51.65946292,106.03,106.02,49.0785]
[1744182128513,103.38392288,106.04,106.03,9.4377]
[1744182129313,97.95520355,106.04,106.03,9.4377]
[1744182129509,0.06499704,106.04,106.03,9.4377]
[1744182129708,9.1749,106.1,106.02,70.47360703]
[1744182129912,9.4329,106.09,106.02,70.47360703]
[1744182130110,9.1749,106.1,106.02,70.47360703]
[1744182130311,9.4351,106.06,106.02,39.64]
[1744182130510,9.1749,106.1,106.02,39.64]
[1744182130714,70.47360703,106.09,106.0,39.62]
[1744182131014,9.435,106.06,106.05,2.789e-05]
[1744182131416,18.855,106.06,106.05,2.789e-05]
[1744182131817,9.435,106.06,106.05,2.789e-05]
[1744182133513,9.4392,106.02,106.0,39.62]
[1744182133921,30.83360703,106.05,106.0,39.62]
[1744182134113,30.83360703,106.05,105.97,39.62]
[1744182134114,33.85410703,106.05,105.97,39.62]
[1744182134315,5.9276,106.04,105.97,39.62]
[1744182134720,9.441,106.0,105.99,0.05989179]
[1744182134919,0.06778773,106.02,105.99,0.05989179]
[1744182135217,9.50678773,106.02,105.99,0.05989179]
[1744182135418,0.06778773,106.02,105.99,0.05989179]
[1744182135921,9.44,106.01,105.99,0.05989179]
[1744182136120,0.06778773,106.02,105.99,0.05989179]
[1744182137924,0.06778773,106.02,106.01,9.4394]
[1744182138223,9.0232,106.09,106.0,70.45360703]
[1744182138923,30.83360703,106.16,106.04,30.83360703]
[1744182139124,5.8775,106.13,106.05,39.62]
[1744182139418,5.8775,106.13,106.06,30.83360703]
[1744182139618,0.06711114,106.1,106.08,0.06986547]
[1744182140017,0.06711114,106.1,106.09,39.6]
[1744182140321,2.9832,106.16,106.09,39.6]
[1744182140617,160.78248876,106.17,106.1,30.83360703]
[1744182140818,154.97838876,106.17,106.1,30.83360703]
[1744182141018,154.97838876,106.17,106.12,30.83360703]
[1744182141221,154.97838876,106.17,106.14,9.4274]
[1744182141518,0.06713258,106.16,106.13,39.67044271]
[1744182141723,0.06713258,106.16,106.14,62.0]
[1744182142218,0.06713258,106.16,106.14,71.4271]
[1744182142424,0.06713258,106.16,106.13,39.67044271]
[1744182142819,0.06713258,106.16,106.15,9.427]
[1744182143429,0.06713258,106.16,106.14,9.4276]
[1744182143629,0.06713258,106.16,106.13,39.67044271]
[1744182144830,0.06713258,106.16,106.14,30.83360703]
[1744182145026,0.06713258,106.16,106.15,507.327]
[1744182145427,0.06713258,106.16,106.15,569.327]
[1744182145629,0.06713258,106.16,106.15,71.427]
[1744182145825,0.06713258,106.16,106.13,0.07044271]
[1744182146325,0.06713258,106.16,106.14,49.0075]
[1744182146526,0.06713258,106.16,106.14,39.58]
[1744182147524,0.06713258,106.16,106.14,49.0073]
[1744182147719,0.06713258,106.16,106.14,39.58]
[1744182148030,8.8477,106.23,106.14,70.41360703]
[1744182148227,9.4213,106.22,106.14,70.41360703]
[1744182148429,8.8477,106.23,106.14,70.41360703]
[1744182148729,9.4213,106.22,106.14,70.41360703]
[1744182148931,9.4213,106.22,106.15,62.0]
[1744182149229,0.06945609,106.19,106.18,9.4241]
[1744182149531,8.8477,106.23,106.18,48.9841]
[1744182149826,0.05998809,106.2,106.18,39.56]
[1744182150230,0.05998809,106.2,106.19,0.07022074]
[1744182153836,9.48248809,106.2,106.19,0.07022074]
[1744182154132,0.05998809,106.2,106.19,0.07022074]
[1744182157341,9.48248809,106.2,106.19,0.07022074]
[1744182157639,0.05998809,106.2,106.19,0.07022074]
[1744182158229,1.63891963,106.28,106.19,556.72117925]
[1744182158430,49.81095851,106.35,106.23,49.81095851]
[1744182158635,367.4213,106.37,106.26,49.81095851]
[1744182158844,9.4101,106.34,106.27,42.36]
[1744182159040,8.4213,106.37,106.28,49.81095851]
[1744182159237,8.4213,106.37,106.28,50.81525851]
[1744182159534,4.63e-06,106.34,106.32,49.81095851]
[1744182159740,103.91001412,106.43,106.33,42.36]
[1744182159939,103.91001412,106.43,106.37,9.4068]
[1744182160137,102.27329133,106.43,106.38,42.36]
[1744182160937,102.27329133,106.43,106.33,120.55095851]
[1744182161237,0.06591059,106.42,106.39,0.06458029]
[1744182161439,102.27329133,106.43,106.39,0.06458029]
[1744182161644,9.47289957,106.42,106.39,0.06458029]
[1744182161843,0.06929957,106.42,106.39,0.06458029]
[1744182162045,59.28025808,106.42,106.34,42.34]
[1744182162342,44.04,106.41,106.31,44.04]
[1744182162546,49.81095851,106.4,106.28,93.85095851]
[1744182162740,9.4109,106.34,106.28,53.4553]
[1744182162939,49.81095851,106.38,106.28,53.4553]
[1744182162940,93.85095851,106.36,106.28,53.4553]
[1744182163143,5.6447,106.33,106.28,53.4553]
[1744182163337,5.70477503,106.33,106.31,0.06993182]
[1744182163545,5.70477503,106.33,106.28,44.04]
[1744182163943,49.74477503,106.33,106.25,44.04]
[1744182164239,49.6847,106.33,106.25,44.04]
[1744182164433,9.4147,106.29,106.25,53.4575]
[1744182164639,5.6447,106.33,106.25,44.04]
[1744182164844,0.06050819,106.28,106.26,0.06524615]
[1744182165047,0.06050819,106.28,106.27,9.4158]
[1744182165242,12.2952,106.33,106.25,44.04]
[1744182165551,0.06805295,106.29,106.28,9.4149]
[1744182165734,0.06805295,106.29,106.28,53.4549]
[1744182165937,2.8838,106.33,106.28,44.04]
[1744182166439,0.07034203,106.32,106.28,44.04]
[1744182166645,0.07034203,106.32,106.29,0.06813601]
[1744182166843,0.07034203,106.32,106.29,9.48243601]
[1744182167046,0.07034203,106.32,106.29,0.06813601]
[1744182167643,0.07034203,106.32,106.3,49.81095851]
[1744182167850,0.07034203,106.32,106.31,44.04]
[1744182168442,0.07034203,106.32,106.31,53.4528]
[1744182169148,2.7341,106.38,106.35,9.4087]
[1744182169349,2.8138,106.4,106.35,44.04]
[1744182169543,359.0,106.53,106.39,49.81095851]
[1744182169750,6.23006395,106.52,106.44,9.4013]
[1744182169946,2.8669,106.52,106.46,49.81095851]
[1744182170142,2.8669,106.52,106.45,44.02]
[1744182170543,0.06995331,106.5,106.48,0.06090685]
[1744182171046,59.28091182,106.5,106.42,44.02]
[1744182171243,59.28091182,106.5,106.38,49.81095851]
[1744182171244,49.81095851,106.46,106.39,44.02]
[1744182171441,5.4457,106.45,106.35,540.86]
[1744182171646,5.4457,106.45,106.36,49.81095851]
[1744182171843,55.25665851,106.45,106.35,540.86]
[1744182172050,5.4457,106.45,106.36,49.81095851]
[1744182172356,0.06470043,106.41,106.39,0.06185792]
[1744182172655,0.06470043,106.41,106.4,45.74]
[1744182172864,0.06470043,106.41,106.39,0.06185792]
[1744182173250,0.06470043,106.41,106.39,9.46685792]
[1744182173651,0.06470043,106.41,106.39,0.06185792]
[1744182173846,0.06470043,106.41,106.4,9.4048]
[1744182174058,4.3e-07,106.41,106.4,55.1248]
[1744182174971,5.5513,106.5,106.4,55.12]
[1744182175253,359.0,106.61,106.44,49.81095851]
[1744182175452,51.53708225,106.6,106.48,49.81095851]
[1744182175657,9.3901,106.57,106.51,9.3949]
[1744182175958,410.2678,106.61,106.52,45.72]
[1744182176156,5.5478,106.61,106.53,0.06133167]
[1744182176456,5.5478,106.61,106.52,49.81095851]
[1744182176457,0.07045497,106.55,106.52,49.81095851]
[1744182176660,8.1747,106.61,106.51,45.7]
[1744182176846,0.06169818,106.58,106.56,0.06413046]
[1744182177048,9.45129818,106.58,106.56,0.06413046]
[1744182177251,0.06169818,106.58,106.56,0.06413046]
[1744182177448,8.1747,106.61,106.56,0.06413046]
[1744182177653,491.94544519,106.67,106.58,9.3889]
[1744182177857,41.28533556,106.65,106.59,47.4]
[1744182178356,41.28533556,106.65,106.56,49.2]
[1744182178552,0.06691904,106.63,106.61,0.06569181]
[1744182178752,0.06691904,106.63,106.53,62.0]
[1744182179157,9.3855,106.62,106.56,49.81095851]
[1744182179359,2.8724,106.65,106.54,99.01095851]
[1744182179564,359.0,106.75,106.6,49.81095851]
[1744182179748,341.60504326,106.84,106.56,49.81095851]
[1744182179749,1.723837,106.74,106.61,545.32]
[1744182179951,1.723837,106.74,106.68,49.81095851]
[1744182180249,0.06303187,106.69,106.67,54.32]
[1744182180456,0.06303187,106.69,106.58,54.32]
[1744182180662,49.81095851,106.76,106.62,49.81095851]
[1744182180865,0.06553075,106.69,106.67,0.07136505]
[1744182181054,3.075e-05,106.69,106.68,56.08]
[1744182181249,8.0539,106.77,106.59,1.0777]
[1744182181565,1.63142844,106.76,106.62,49.81095851]
[1744182181757,8.0539,106.77,106.66,49.81095851]
[1744182181958,8.0539,106.77,106.67,57.88]
[1744182182460,0.06825937,106.73,106.71,0.0630044]
[1744182182864,59.72,106.83,106.7,49.81095851]
[1744182183160,0.05976509,106.73,106.71,0.06082835]
[1744182183363,49.81095851,106.8,106.71,0.06082835]
[1744182183364,408.81095851,106.82,106.71,0.06082835]
[1744182183561,1.63054937,106.8,106.68,49.81095851]
[1744182183862,1.63054937,106.8,106.71,49.81095851]
[1744182184051,109.53095851,106.81,106.68,49.81095851]
[1744182184258,59.72,106.77,106.67,49.81095851]
[1744182184562,0.07220016,106.74,106.72,0.07148045]
[1744182184754,9.3775,106.71,106.65,9.3828]
[1744182184958,0.07220016,106.74,106.65,49.81095851]
[1744182185159,555.88,106.77,106.63,59.72]
[1744182185462,9.3765,106.73,106.65,49.81095851]
[1744182185665,555.88,106.77,106.65,49.81095851]
[1744182186167,0.06187675,106.7,106.68,0.06078684]
[1744182186661,9.3783,106.71,106.67,61.6]
[1744182186964,61.6,106.73,106.64,61.6]
[1744182187271,0.07197637,106.7,106.68,0.0602346]
[1744182187761,9.3793,106.69,106.68,0.0602346]
[1744182187964,61.58,106.69,106.62,13.09892]
[1744182188164,9.3846,106.63,106.62,13.09892]
[1744182188563,49.81095851,106.68,106.62,13.09892]
[1744182189155,0.06766303,106.66,106.64,6.453e-05]
[1744182189360,70.963,106.65,106.64,6.453e-05]
[1744182189965,73.5962,106.65,106.5,495.38]
[1744182190170,2.8972,106.64,106.55,49.81095851]
[1744182190364,2.8972,106.64,106.57,9.3896]
[1744182190666,49.81095851,106.63,106.51,2.1327]
[1744182190870,2.8972,106.64,106.58,9.3888]
[1744182191071,2.8972,106.64,106.52,2.6183]
[1744182191367,0.06882937,106.58,106.56,0.05943306]
[1744182191573,99.62191702,106.57,106.31,1304.21605012]
[1744182191762,49.81095851,106.48,106.35,49.81095851]
[1744182191960,49.81095851,106.5,106.32,548.0]
[1744182191961,113.23095851,106.5,106.32,548.0]
[1744182192168,113.23095851,106.5,106.36,49.81095851]
[1744182192363,49.81095851,106.5,106.36,49.81095851]
[1744182192565,65.26,106.51,106.37,1.71012992]
[1744182192769,0.06292981,106.44,106.42,1.687e-05]
[1744182192970,9.46442981,106.44,106.42,1.687e-05]
[1744182193170,109.02191702,106.44,106.32,1.88111361]
[1744182193360,52.47825851,106.5,106.32,1.88111361]
[1744182193361,359.0,106.49,106.32,1.88111361]
[1744182193563,359.0,106.49,106.33,497.152064]
[1744182193762,359.0,106.48,106.33,497.152064]
[1744182193972,28.22,106.58,106.32,1.88111361]
[1744182194161,2.6673,106.63,106.44,49.81095851]
[1744182194359,49.81095851,106.6,106.38,49.81095851]
[1744182194565,1.87634862,106.59,106.39,5.0437]
[1744182194772,0.07208923,106.55,106.52,0.0644917]
[1744182194963,1.87634862,106.59,106.39,5.0437]
[1744182195270,2.6673,106.63,106.44,49.81095851]
[1744182195470,2.6673,106.63,106.39,553.0437]
[1744182195471,1.87582067,106.62,106.39,553.0437]
[1744182195774,363.58592067,106.62,106.5,49.81095851]
[1744182196069,4.58592067,106.62,106.39,916.0437]
[1744182196262,0.06456837,106.57,106.55,0.06953083]
[1744182196668,4.58592067,106.62,106.45,4.2551]
[1744182196873,1.63407133,106.57,106.5,49.81095851]
[1744182197072,28.22,106.76,106.55,0.07163187]
[1744182197369,408.81095851,106.75,106.56,49.81095851]
[1744182197564,359.0,106.79,106.51,501.203]
[1744182197762,49.81095851,106.73,106.52,1.69997107]
[1744182197962,498.64113608,106.78,106.64,9.3836]
[1744182198168,498.64113608,106.78,106.53,5.543]
[1744182198473,0.06678228,106.72,106.7,9.909e-05]
[1744182198672,9.44418228,106.72,106.61,9.3855]
[1744182198868,49.81095851,106.74,106.56,49.81095851]
[1744182199065,49.81095851,106.74,106.6,9.3865]
[1744182199265,49.81095851,106.74,106.53,553.543]
[1744182199465,49.81095851,106.68,106.54,49.81095851]
[1744182199666,49.81095851,106.74,106.45,1406.66]
[1744182199667,495.66,106.67,106.45,1406.66]
[1744182199971,0.06945328,106.62,106.51,62.0]
[1744182200169,49.88041179,106.62,106.47,49.81095851]
[1744182200373,49.81095851,106.59,106.46,5.5034]
[1744182200575,49.81095851,106.59,106.46,2.7719]